bitfinex/quotes_BTCUSD_20250223
["timestamp","ask_amount","ask_price","bid_price","bid_amount"]
[1740325994253,0.10434589,95633.0,95632.0,0.08801542]
[1740325995043,0.34453407,95633.0,95632.0,0.08801542]
[1740325995250,0.34453407,95633.0,95632.0,0.00801542]
[1740325995447,0.34453407,95633.0,95632.0,0.00901542]
[1740325995764,0.34453407,95633.0,95632.0,0.005]
[1740325996356,0.125482,95631.0,95630.0,0.0917005]
[1740325996555,0.22812769,95631.0,95630.0,0.0917005]
[1740325997206,0.23592738,95631.0,95630.0,0.0917005]
[1740325997397,0.34283687,95631.0,95630.0,0.0917005]
[1740325998351,0.34283687,95631.0,95630.0,0.0927005]
[1740325998550,0.21735487,95631.0,95630.0,0.0967014]
[1740325998812,0.21735487,95631.0,95630.0,0.2221844]
[1740325999486,0.21735487,95631.0,95630.0,0.12046998]
[1740326000627,0.21735487,95631.0,95630.0,0.24595298]
[1740326000863,0.21735487,95631.0,95630.0,0.12046998]
[1740326002294,0.21735487,95631.0,95630.0,0.24595298]
[1740326002529,0.21735487,95631.0,95630.0,0.32595298]
[1740326003636,0.21735487,95631.0,95630.0,0.37105298]
[1740326003842,0.00779969,95631.0,95630.0,0.37105298]
[1740326004801,0.0017002,95633.0,95632.0,0.125481]
[1740326005222,0.0017002,95633.0,95632.0,0.12955238]
[1740326006793,0.0027002,95633.0,95632.0,0.13555238]
[1740326006998,0.10534589,95633.0,95632.0,0.13555238]
[1740326007718,0.10634589,95633.0,95632.0,0.14055238]
[1740326008950,0.0037002,95633.0,95632.0,0.2178071]
[1740326009148,0.0037002,95633.0,95632.0,0.23109323]
[1740326011091,0.0037002,95633.0,95632.0,0.21655238]
[1740326031726,0.0037002,95633.0,95632.0,0.23109323]
[1740326032665,2e-07,95633.0,95632.0,0.44699323]
[1740326033102,2e-07,95633.0,95632.0,0.4796351]
[1740326033281,0.10690949,95652.0,95651.0,0.125456]
[1740326033461,0.0016998,95653.0,95652.0,0.125454]
[1740326033663,0.00174308,95653.0,95652.0,0.125454]
[1740326034155,0.00174308,95653.0,95652.0,0.129502]
[1740326034467,0.00174308,95653.0,95652.0,0.140092]
[1740326037632,0.00174308,95653.0,95652.0,0.141092]
[1740326037834,0.00174308,95653.0,95652.0,0.143092]
[1740326042633,0.00174308,95653.0,95652.0,0.16351301]
[1740326059801,0.00174308,95653.0,95652.0,0.15292301]
[1740326062129,0.00174308,95653.0,95652.0,0.17777447]
[1740326062328,0.00174308,95653.0,95652.0,0.17902877]
[1740326062529,0.00174308,95653.0,95652.0,0.17777447]
[1740326062845,0.00174308,95653.0,95652.0,0.17902877]
[1740326063271,0.00174308,95653.0,95652.0,0.4260287]
[1740326063470,0.00174308,95653.0,95652.0,0.45743532]
[1740326064462,0.00174308,95653.0,95652.0,0.50493532]
[1740326066461,0.00174308,95653.0,95652.0,0.45227447]
[1740326067582,0.00174308,95653.0,95652.0,0.45127447]
[1740326067929,0.00174308,95653.0,95652.0,0.45427447]
[1740326068082,0.00174308,95653.0,95652.0,0.45927447]
[1740326069563,0.00174308,95653.0,95652.0,0.30927447]
[1740326069767,0.00174308,95653.0,95652.0,0.18477447]
[1740326070056,0.00174308,95653.0,95652.0,0.17023362]
[1740326070580,0.10438877,95653.0,95652.0,0.17023362]
[1740326071384,0.10438877,95653.0,95652.0,0.15992301]
[1740326076209,0.10438877,95653.0,95652.0,0.03446901]
[1740326076434,0.10438877,95653.0,95652.0,0.03042101]
[1740326076665,0.10438877,95653.0,95652.0,0.03443207]
[1740326076868,0.22984177,95653.0,95652.0,0.03443207]
[1740326077022,0.22984177,95653.0,95652.0,0.02542101]
[1740326077241,0.22984177,95653.0,95652.0,0.02942101]
[1740326077599,0.31254177,95653.0,95652.0,0.02442101]
[1740326077874,0.31254177,95653.0,95652.0,0.02042101]
[1740326078086,0.31254177,95653.0,95652.0,0.02442101]
[1740326078238,0.125461,95647.0,95641.0,0.125468]
[1740326078435,0.125464,95645.0,95642.0,0.00401114]
[1740326078641,0.10264569,95644.0,95635.0,0.09390069]
[1740326078864,0.26993369,95644.0,95636.0,0.00401744]
[1740326079066,0.125466,95643.0,95636.0,0.12949244]
[1740326079269,0.22811369,95642.0,95636.0,0.12949244]
[1740326079465,0.10264569,95642.0,95638.0,0.125473]
[1740326079684,0.10264569,95642.0,95639.0,0.125471]
[1740326079876,0.10264569,95642.0,95639.0,0.00401742]
[1740326080041,0.10264569,95642.0,95640.0,0.12547]
[1740326080242,0.10264569,95642.0,95641.0,0.00401741]
[1740326081139,0.33502218,95642.0,95640.0,0.006]
[1740326081349,0.33502218,95642.0,95641.0,0.00401741]
[1740326081762,0.20955518,95642.0,95641.0,0.006]
[1740326081968,0.20955518,95642.0,95633.0,0.0008501]
[1740326082195,0.37684518,95642.0,95633.0,0.0008501]
[1740326082380,0.208171,95639.0,95634.0,0.00401746]
[1740326082576,0.208171,95639.0,95633.0,0.1263291]
[1740326082577,0.10264569,95638.0,95633.0,0.1263291]
[1740326082905,0.10264569,95638.0,95634.0,0.12949546]
[1740326083329,0.22811869,95638.0,95634.0,0.00401746]
[1740326083687,0.22811869,95638.0,95633.0,0.1263291]
[1740326083894,0.10264569,95638.0,95635.0,0.12949245]
[1740326084114,0.10264569,95638.0,95633.0,0.0048501]
[1740326084318,0.10264569,95638.0,95636.0,0.00401744]
[1740326084519,0.10264569,95638.0,95634.0,0.125477]
[1740326084770,0.10264569,95638.0,95637.0,0.00401744]
[1740326084974,0.10264569,95638.0,95634.0,0.125477]
[1740326085175,0.10264569,95638.0,95637.0,0.00401744]
[1740326085352,0.10264569,95638.0,95634.0,0.125477]
[1740326085553,0.10264569,95638.0,95637.0,0.125474]
[1740326085810,0.10264569,95638.0,95637.0,0.130474]
[1740326085965,0.10264569,95638.0,95637.0,0.13449144]
[1740326087165,0.10264569,95638.0,95637.0,0.13849144]
[1740326091753,0.10264569,95638.0,95637.0,0.15933749]
[1740326099523,0.10434629,95638.0,95637.0,0.15933749]
[1740326104029,0.0017006,95638.0,95637.0,0.15933749]
[1740326104269,0.0017006,95638.0,95637.0,0.16059205]
[1740326105286,0.0017006,95638.0,95637.0,0.15933749]
[1740326105839,0.0017006,95638.0,95637.0,0.16059205]
[1740326108703,0.0017006,95638.0,95637.0,0.15933749]
[1740326111351,0.0017006,95638.0,95637.0,0.17895881]
[1740326113238,0.0017006,95638.0,95637.0,0.15933749]
[1740326117610,0.0017006,95638.0,95637.0,0.17895376]
[1740326118165,0.0017006,95638.0,95637.0,0.18020829]
[1740326118818,0.0017006,95638.0,95637.0,0.19349461]
[1740326120263,0.0017006,95638.0,95637.0,0.17387834]
[1740326122783,0.0017006,95638.0,95637.0,0.19349202]
[1740326123722,0.0017006,95638.0,95637.0,0.17387834]
[1740326125589,0.0017006,95638.0,95637.0,0.25477834]
[1740326127679,0.0017006,95638.0,95637.0,0.27438283]
[1740326135340,0.0017006,95638.0,95637.0,0.36828352]
[1740326137247,0.0017006,95638.0,95637.0,0.28738352]
[1740326140750,0.0017006,95638.0,95637.0,0.19348283]
[1740326142707,0.0017006,95638.0,95637.0,0.32508283]
[1740326146686,0.0017006,95638.0,95637.0,0.35775633]
[1740326147068,0.0017006,95638.0,95637.0,0.50775633]
[1740326149291,0.1500006,95638.0,95637.0,0.61040202]
[1740326150966,0.1500006,95638.0,95637.0,0.60640202]
[1740326151170,0.1500006,95638.0,95637.0,0.60840202]
[1740326151589,0.1500006,95638.0,95637.0,0.61540202]
[1740326152346,0.1500006,95638.0,95637.0,0.36661548]
[1740326152552,0.1500006,95638.0,95637.0,0.38115633]
[1740326152754,0.1500006,95638.0,95637.0,0.45925633]
[1740326153653,0.1500006,95638.0,95637.0,0.56190202]
[1740326157745,0.15,95638.0,95637.0,0.56190202]
[1740326161759,0.1517006,95638.0,95637.0,0.56190202]
[1740326164509,3.7e-07,95638.0,95637.0,0.50838247]
[1740326165535,3.7e-07,95638.0,95637.0,0.52838247]
[1740326165713,3.7e-07,95638.0,95637.0,0.54101326]
[1740326166524,3.7e-07,95638.0,95637.0,0.56101326]
[1740326168314,3.7e-07,95638.0,95637.0,0.54140877]
[1740326168915,3.7e-07,95638.0,95637.0,0.56098783]
[1740326169369,3.7e-07,95638.0,95637.0,0.58045713]
[1740326170886,3.7e-07,95638.0,95637.0,0.62635713]
[1740326171509,3.7e-07,95638.0,95637.0,0.62269445]
[1740326171700,3.7e-07,95638.0,95637.0,0.63569445]
[1740326172107,3.7e-07,95638.0,95637.0,0.64269445]
[1740326172693,3.7e-07,95638.0,95637.0,0.63569445]
[1740326173164,0.0017008,95655.0,95654.0,0.02]
[1740326173165,8.8e-07,95655.0,95654.0,0.02]
[1740326173280,8.8e-07,95655.0,95654.0,0.26263854]
[1740326173492,8.8e-07,95655.0,95654.0,0.2668066]
[1740326174523,8.8e-07,95655.0,95654.0,0.31342502]
[1740326175106,8.8e-07,95655.0,95654.0,0.46342502]
[1740326175306,8.8e-07,95655.0,95654.0,0.50932502]
[1740326175480,8.8e-07,95655.0,95654.0,0.52890408]
[1740326175858,8.8e-07,95655.0,95654.0,0.52190408]
[1740326176203,8.8e-07,95655.0,95654.0,0.52890408]
[1740326176512,8.8e-07,95655.0,95654.0,0.52190408]
[1740326176795,0.0495,95677.0,95669.0,0.13997285]
[1740326177417,0.0495,95677.0,95669.0,0.1441408]
[1740326177758,0.0495,95677.0,95669.0,0.1547833]
[1740326177959,0.00174387,95670.0,95669.0,0.1547833]
[1740326178801,0.00174387,95670.0,95669.0,0.1617833]
[1740326179175,0.00174387,95670.0,95669.0,0.18836236]
[1740326179386,0.07844387,95670.0,95669.0,0.16317901]
[1740326179586,0.12794387,95670.0,95669.0,0.03774701]
[1740326180170,0.25337487,95670.0,95669.0,0.03774701]
[1740326180427,0.35602056,95670.0,95669.0,0.03357906]
[1740326180862,0.35602056,95670.0,95669.0,0.02657906]
[1740326181078,0.35602056,95670.0,95669.0,0.02257906]
[1740326181488,0.68572056,95670.0,95669.0,0.02657906]
[1740326182445,0.68572056,95670.0,95669.0,0.02357906]
[1740326182827,0.68572056,95670.0,95669.0,0.02557906]
[1740326183186,0.68572056,95670.0,95669.0,0.006]
[1740326183391,0.68572056,95670.0,95669.0,0.004]
[1740326183595,0.83672056,95670.0,95669.0,0.004]
[1740326183932,0.401635,95667.0,95666.0,0.02048169]
[1740326184113,0.401637,95665.0,95664.0,0.09388227]
[1740326184290,0.50428269,95665.0,95664.0,0.09388227]
[1740326184694,0.0767,95643.0,95642.0,0.01957906]
[1740326186045,0.0767,95643.0,95633.0,0.1263291]
[1740326186375,0.0767,95643.0,95638.0,0.00419061]
[1740326186575,0.0767,95643.0,95642.0,0.006]
[1740326186812,0.0767,95643.0,95642.0,0.013]
[1740326187018,0.0767,95643.0,95642.0,0.01719058]
[1740326187222,0.0767,95643.0,95642.0,0.00419058]
[1740326187944,0.0767,95643.0,95642.0,0.007]
[1740326188201,0.0767,95643.0,95642.0,0.01119058]
[1740326188574,0.0767,95643.0,95642.0,0.007]
[1740326189138,0.0767,95643.0,95642.0,0.013]
[1740326189975,0.0767,95643.0,95642.0,0.01719058]
[1740326190328,0.0767,95643.0,95642.0,0.013]
[1740326191638,0.0767,95643.0,95642.0,0.01719058]
[1740326193267,0.0767,95643.0,95642.0,0.013]
[1740326193921,0.0767,95643.0,95642.0,0.01718825]
[1740326194124,0.17934569,95643.0,95642.0,0.01718825]
[1740326194450,0.30481169,95643.0,95642.0,0.013]
[1740326195759,0.30481169,95643.0,95642.0,0.03365822]
[1740326197857,0.30481169,95643.0,95642.0,0.02665822]
[1740326198155,0.30481169,95643.0,95642.0,0.02650832]
[1740326198359,0.30481169,95643.0,95642.0,0.03250832]
[1740326198856,0.30481169,95643.0,95642.0,0.02650832]
[1740326199266,0.30481169,95643.0,95642.0,0.03050832]
[1740326200050,0.63451169,95643.0,95642.0,0.03050832]
[1740326207326,0.68241169,95643.0,95642.0,0.0098501]
[1740326208039,0.68241169,95643.0,95642.0,0.0058501]
[1740326208245,0.68241169,95643.0,95642.0,0.0008501]
[1740326208460,0.68441169,95643.0,95642.0,0.0008501]
[1740326208672,0.68541169,95643.0,95642.0,0.0008501]
[1740326208863,0.68341169,95643.0,95642.0,0.0008501]
[1740326209163,0.68541169,95643.0,95642.0,0.0008501]
[1740326209586,0.68341169,95643.0,95642.0,0.0008501]
[1740326209989,0.68241169,95643.0,95642.0,0.0008501]
[1740326210488,0.68341169,95643.0,95642.0,0.0008501]
[1740326210616,0.68241169,95643.0,95642.0,0.0008501]
[1740326210815,0.68341169,95643.0,95642.0,0.0008501]
[1740326211017,0.68541169,95643.0,95642.0,0.0008501]
[1740326211437,0.68341169,95643.0,95642.0,0.0008501]
[1740326211876,0.68541169,95643.0,95642.0,0.0008501]
[1740326212279,0.83541169,95643.0,95642.0,0.0008501]
[1740326222827,0.83441169,95643.0,95642.0,0.0008501]
[1740326223032,0.83241169,95643.0,95642.0,0.0008501]
[1740326223643,0.83441169,95643.0,95642.0,0.0008501]
[1740326224429,0.83241169,95643.0,95642.0,0.0008501]
[1740326224618,0.83441169,95643.0,95642.0,0.0008501]
[1740326225135,0.83241169,95643.0,95642.0,0.0008501]
[1740326226110,0.86672385,95643.0,95642.0,0.0008501]
[1740326226423,0.86872385,95643.0,95642.0,0.0008501]
[1740326226861,0.86672385,95643.0,95642.0,0.0008501]
[1740326227041,0.86872385,95643.0,95642.0,0.0008501]
[1740326227420,0.86672385,95643.0,95642.0,0.0008501]
[1740326227819,0.86672385,95643.0,95642.0,0.0018501]
[1740326228025,0.86872385,95643.0,95642.0,0.0018501]
[1740326229025,0.86872385,95643.0,95642.0,0.001]
[1740326229232,0.125473,95638.0,95637.0,0.0008503]
[1740326229463,0.35501869,95638.0,95637.0,0.0008503]
[1740326229836,0.68471869,95638.0,95637.0,0.0008503]
[1740326230455,0.68571869,95638.0,95637.0,0.00089358]
[1740326231408,0.83571869,95638.0,95637.0,0.00089358]
[1740326231627,0.83771869,95638.0,95637.0,0.00189358]
[1740326232044,0.75611869,95638.0,95637.0,0.00189358]
[1740326232654,0.75511869,95638.0,95637.0,0.00189358]
[1740326232871,0.75311869,95638.0,95637.0,0.00089358]
[1740326233070,0.75511869,95638.0,95637.0,0.00089358]
[1740326233384,0.75711869,95638.0,95637.0,0.00089358]
[1740326235167,0.71181869,95638.0,95637.0,0.00089358]
[1740326256381,0.78871869,95638.0,95637.0,0.00089358]
[1740326256607,0.83711869,95638.0,95637.0,0.00089358]
[1740326257242,0.83517938,95638.0,95637.0,0.00089358]
[1740326257654,0.83617938,95638.0,95637.0,0.00089358]
[1740326258027,0.83417938,95638.0,95637.0,0.00089358]
[1740326258231,0.83917938,95638.0,95637.0,0.00189358]
[1740326268238,0.43840638,95638.0,95637.0,0.00189358]
[1740326268454,0.56387938,95638.0,95637.0,0.00189358]
[1740326269017,0.58840638,95638.0,95637.0,0.00189358]
[1740326269628,0.58840638,95638.0,95637.0,0.00089358]
[1740326269629,0.58340638,95638.0,95637.0,0.00089358]
[1740326269964,0.58240638,95638.0,95637.0,0.00089358]
[1740326270450,0.43240638,95638.0,95637.0,0.00089358]
[1740326271479,0.43340638,95638.0,95637.0,0.00289358]
[1740326271855,0.43240638,95638.0,95637.0,0.00289358]
[1740326272033,0.43240638,95638.0,95637.0,0.00389358]
[1740326272232,0.43240638,95638.0,95637.0,0.00806803]
[1740326273260,0.43240638,95638.0,95637.0,0.13354203]
[1740326275965,0.43240638,95638.0,95637.0,0.00806803]
[1740326280972,0.43240638,95638.0,95637.0,0.00389358]
[1740326281683,0.43240638,95638.0,95637.0,0.00802205]
[1740326281904,0.43240638,95638.0,95637.0,0.00389358]
[1740326282345,0.43240638,95638.0,95637.0,0.00802205]
[1740326290170,0.43240638,95638.0,95637.0,0.13349605]
[1740326291891,0.43240638,95638.0,95637.0,0.00802205]
[1740326293189,0.43240638,95638.0,95637.0,0.13349605]
[1740326294131,0.43240638,95638.0,95637.0,0.00802205]
[1740326296601,0.43240638,95638.0,95637.0,0.13349605]
[1740326296960,0.43240638,95638.0,95637.0,0.59434605]
[1740326300175,0.32976069,95638.0,95637.0,0.59434605]
[1740326301160,0.32976069,95638.0,95637.0,0.59761807]
[1740326302815,0.32976069,95638.0,95637.0,0.59434605]
[1740326305315,0.32976069,95638.0,95637.0,0.59761803]
[1740326315341,0.32976069,95638.0,95637.0,0.47214403]
[1740326315679,0.32976069,95638.0,95637.0,0.59761803]
[1740326320637,0.45523369,95638.0,95637.0,0.47214403]
[1740326320844,0.55787938,95638.0,95637.0,0.47214403]
[1740326321052,0.43240638,95638.0,95637.0,0.47214403]
[1740326321460,0.55787938,95638.0,95637.0,0.46887205]
[1740326322344,0.43240638,95638.0,95637.0,0.46887205]
[1740326322747,0.55787938,95638.0,95637.0,0.46887205]
[1740326326194,0.70787938,95638.0,95637.0,0.46887205]
[1740326331703,0.70787938,95638.0,95637.0,0.46587205]
[1740326331931,0.70887938,95638.0,95637.0,0.46587205]
[1740326332203,0.70887938,95638.0,95637.0,0.46687205]
[1740326332371,0.70787938,95638.0,95637.0,0.46687205]
[1740326332711,0.70787938,95638.0,95637.0,0.46587205]
[1740326333139,0.70787938,95638.0,95637.0,0.46687205]
[1740326333403,0.70787938,95638.0,95637.0,0.46587205]
[1740326334823,0.70787938,95638.0,95637.0,0.46687205]
[1740326334984,0.70787938,95638.0,95637.0,0.46587205]
[1740326335231,0.70787938,95638.0,95637.0,0.46687205]
[1740326336255,0.70787938,95638.0,95637.0,0.46587205]
[1740326336449,0.70787938,95638.0,95637.0,0.46687205]
[1740326337688,0.70787938,95638.0,95637.0,0.46587205]
[1740326338297,0.74188098,95638.0,95637.0,0.46587205]
[1740326338521,0.79167938,95638.0,95637.0,0.46587205]
[1740326338731,0.96022507,95638.0,95637.0,0.46587205]
[1740326338969,0.86528709,95638.0,95637.0,0.46587205]
[1740326339197,0.84528709,95638.0,95637.0,0.46587205]
[1740326339423,0.86328709,95638.0,95637.0,5e-08]
[1740326339661,0.89828869,95638.0,95637.0,0.00359753]
[1740326339862,0.89828869,95638.0,95637.0,5e-08]
[1740326341063,0.423178,95634.0,95633.0,1.5e-07]
[1740326341291,0.52582369,95634.0,95633.0,1.5e-07]
[1740326341520,0.423182,95631.0,95630.0,0.01943183]
[1740326341790,0.85552769,95631.0,95630.0,0.01943183]
[1740326344593,0.86052769,95631.0,95630.0,0.02143183]
[1740326344815,0.85952769,95631.0,95630.0,0.02043183]
[1740326345363,0.85652769,95631.0,95630.0,0.01943183]
[1740326345582,0.95817338,95631.0,95630.0,0.01943183]
[1740326345785,0.95917338,95631.0,95630.0,0.02043183]
[1740326345957,0.96317338,95631.0,95630.0,0.02143183]
[1740326346362,0.86052769,95631.0,95630.0,0.02143183]
[1740326347174,0.86052769,95631.0,95630.0,0.02228203]
[1740326347175,0.84052769,95631.0,95630.0,0.02228203]
[1740326347376,0.86052769,95631.0,95630.0,0.02228203]
[1740326347554,0.86122809,95631.0,95630.0,0.02128203]
[1740326347813,0.85722809,95631.0,95630.0,0.02028203]
[1740326348115,0.86222809,95631.0,95630.0,0.02228203]
[1740326348356,0.96487378,95631.0,95630.0,0.02228203]
[1740326348573,0.94087378,95631.0,95630.0,0.02128203]
[1740326348754,0.95987378,95631.0,95630.0,0.02028203]
[1740326348954,0.96487378,95631.0,95630.0,0.02228203]
[1740326349165,0.96387378,95631.0,95630.0,0.02128203]
[1740326349506,0.96487378,95631.0,95630.0,0.02228203]
[1740326352163,0.97287378,95631.0,95630.0,0.02228203]
[1740326352647,0.96887378,95631.0,95630.0,0.02128203]
[1740326353030,0.97287378,95631.0,95630.0,0.02228203]
[1740326353231,0.97287378,95631.0,95630.0,3e-08]
[1740326353448,1.00687538,95631.0,95630.0,3e-08]
[1740326353805,1.00587538,95631.0,95630.0,3e-08]
[1740326354270,0.295486,95628.0,95627.0,0.0008503]
[1740326354423,0.39813169,95628.0,95627.0,3e-07]
[1740326354635,0.43213329,95628.0,95627.0,3e-07]
[1740326354851,0.51373329,95628.0,95627.0,3e-07]
[1740326355469,0.51873329,95628.0,95627.0,0.0010003]
[1740326356369,0.56813329,95628.0,95627.0,3e-07]
[1740326356509,0.94051425,95628.0,95627.0,3e-07]
[1740326356742,0.94051425,95628.0,95610.0,9e-07]
[1740326356743,0.40475167,95611.0,95610.0,9e-07]
[1740326356919,0.54139896,95611.0,95610.0,9e-07]
[1740326357936,0.51039736,95611.0,95610.0,0.0010009]
[1740326358157,0.51339736,95611.0,95610.0,0.0010009]
[1740326358730,0.51039736,95611.0,95610.0,0.0010009]
[1740326358926,0.51639736,95611.0,95610.0,0.0020009]
[1740326359458,0.52444652,95611.0,95610.0,0.0020009]
[1740326360071,0.52444652,95611.0,95610.0,9e-07]
[1740326360272,0.55844812,95611.0,95610.0,9e-07]
[1740326360480,0.88814812,95611.0,95610.0,9e-07]
[1740326361115,0.90814812,95611.0,95610.0,9e-07]
[1740326362865,0.87414652,95611.0,95610.0,9e-07]
[1740326370126,0.74314652,95611.0,95610.0,9e-07]
[1740326370352,0.72314652,95611.0,95610.0,0.02067777]
[1740326370566,0.57314652,95611.0,95610.0,9e-07]
[1740326370756,0.72314652,95611.0,95610.0,9e-07]
[1740326371611,0.72314652,95611.0,95610.0,0.0008513]
[1740326374936,0.72314652,95611.0,95610.0,0.02188894]
[1740326375093,0.71714652,95611.0,95610.0,0.02188804]
[1740326375299,0.72114652,95611.0,95610.0,0.02188804]
[1740326375698,0.71714652,95611.0,95610.0,0.02188804]
[1740326377152,0.72214652,95611.0,95610.0,0.02288804]
[1740326383586,0.72384672,95611.0,95610.0,0.02288804]
[1740326404959,0.77589993,95611.0,95610.0,0.02288804]
[1740326405130,0.72384672,95611.0,95610.0,0.02288804]
[1740326407139,0.80154672,95611.0,95610.0,0.02288804]
[1740326407341,0.80154672,95611.0,95610.0,0.0018504]
[1740326408598,0.79854672,95611.0,95610.0,0.0018504]
[1740326409407,0.79354672,95611.0,95610.0,0.0008504]
[1740326409622,0.80054672,95611.0,95610.0,0.0008504]
[1740326410089,0.79854672,95611.0,95610.0,0.0008504]
[1740326410513,0.80454672,95611.0,95610.0,0.0008504]
[1740326410790,0.79954672,95611.0,95610.0,0.0008504]
[1740326412441,0.80354672,95611.0,95610.0,0.0008504]
[1740326417396,0.81154672,95611.0,95610.0,0.0008504]
[1740326423097,0.73384672,95611.0,95610.0,0.0008504]
[1740326432291,0.72584672,95611.0,95610.0,0.0008504]
[1740326432491,0.73384672,95611.0,95610.0,0.0008504]
[1740326441943,0.60209505,95611.0,95610.0,0.0008504]
[1740326442169,0.45209505,95611.0,95610.0,0.0795504]
[1740326442596,0.57760305,95611.0,95610.0,0.0795504]
[1740326442814,0.45209505,95611.0,95610.0,0.0795504]
[1740326443014,0.57760305,95611.0,95610.0,0.0795504]
[1740326444192,0.45209505,95611.0,95610.0,0.0795504]
[1740326445082,0.57760305,95611.0,95610.0,0.0795504]
[1740326445717,0.45209505,95611.0,95610.0,0.0795504]
[1740326448265,0.57760305,95611.0,95610.0,0.0795504]
[1740326448687,0.45209505,95611.0,95610.0,0.0795504]
[1740326452158,0.44809505,95611.0,95610.0,0.0795504]
[1740326452377,0.44909505,95611.0,95610.0,0.0795504]
[1740326452589,0.44309505,95611.0,95610.0,0.0795504]
[1740326452795,0.43404589,95611.0,95610.0,0.1263504]
[1740326453025,0.43504589,95611.0,95610.0,0.1263504]
[1740326453233,0.43504589,95611.0,95610.0,0.13003716]
[1740326453841,0.43504589,95611.0,95610.0,0.25554616]
[1740326454046,0.43404589,95611.0,95610.0,0.25554616]
[1740326454219,0.43404589,95611.0,95610.0,0.2518594]
[1740326454425,0.43504589,95611.0,95610.0,0.2518594]
[1740326454627,0.43504589,95611.0,95610.0,0.25554616]
[1740326454835,0.43404589,95611.0,95610.0,0.25554616]
[1740326455011,0.43404589,95611.0,95610.0,0.25754616]
[1740326455217,0.43404589,95611.0,95610.0,0.26054616]
[1740326456047,0.43404589,95611.0,95610.0,0.25554616]
[1740326456219,0.43404589,95611.0,95610.0,0.25854616]
[1740326456779,0.43404589,95611.0,95610.0,0.25554616]
[1740326456967,0.43504589,95611.0,95610.0,0.26154616]
[1740326457748,0.43504589,95611.0,95610.0,0.26354616]
[1740326458173,0.43504589,95611.0,95610.0,0.26154616]
[1740326458556,0.43604589,95611.0,95610.0,0.26554616]
[1740326459309,0.3334002,95611.0,95610.0,0.26554616]
[1740326464452,0.3262002,95611.0,95610.0,0.26554616]
[1740326464902,0.3262002,95611.0,95610.0,0.14003716]
[1740326464903,0.42884589,95611.0,95610.0,0.14003716]
[1740326465114,0.42884589,95611.0,95610.0,0.01453716]
[1740326465531,0.42884589,95611.0,95610.0,0.0108504]
[1740326465959,0.42884589,95611.0,95610.0,0.01450379]
[1740326466161,0.42884589,95611.0,95610.0,0.0108504]
[1740326466367,0.55435389,95611.0,95610.0,0.0108504]
[1740326467769,0.42884589,95611.0,95610.0,0.0108504]
[1740326467978,0.42784589,95611.0,95610.0,0.0068504]
[1740326468411,0.42784589,95611.0,95610.0,0.0108504]
[1740326468633,0.42684589,95611.0,95610.0,0.0048504]
[1740326468859,0.42684589,95611.0,95610.0,0.0058504]
[1740326469075,0.42684589,95611.0,95610.0,0.0028504]
[1740326469499,0.42684589,95611.0,95610.0,0.0068504]
[1740326469878,0.55235389,95611.0,95610.0,0.0068504]
[1740326470335,0.55235389,95611.0,95610.0,0.0048504]
[1740326470550,0.42684589,95611.0,95610.0,0.0088504]
[1740326470783,0.55235389,95611.0,95610.0,0.0088504]
[1740326471651,0.42684589,95611.0,95610.0,0.0088504]
[1740326471839,0.42684589,95611.0,95610.0,0.0048504]
[1740326472551,0.42784589,95611.0,95610.0,0.0048504]
[1740326473061,0.42684589,95611.0,95610.0,0.1303594]
[1740326473314,0.3242002,95611.0,95610.0,0.13203467]
[1740326473557,0.3242002,95611.0,95610.0,0.13303467]
[1740326474044,0.3242002,95611.0,95610.0,0.13203467]
[1740326474466,0.3242002,95611.0,95610.0,0.00652567]
[1740326474920,0.3242002,95611.0,95610.0,0.0008504]
[1740326475157,0.3242002,95611.0,95610.0,0.00852567]
[1740326475370,0.3242002,95611.0,95610.0,0.1303594]
[1740326475585,0.3242002,95611.0,95610.0,0.13403467]
[1740326476639,0.3242002,95611.0,95610.0,0.13803467]
[1740326480099,0.3242002,95611.0,95610.0,0.21633467]
[1740326480770,0.3242002,95611.0,95610.0,0.21233467]
[1740326480985,0.3242002,95611.0,95610.0,0.21333467]
[1740326481191,0.3242002,95611.0,95610.0,0.21833467]
[1740326481615,0.3242002,95611.0,95610.0,0.20833467]
[1740326481821,0.3242002,95611.0,95610.0,0.21533467]
[1740326483719,0.3252002,95611.0,95610.0,0.22233467]
[1740326502049,0.3242002,95611.0,95610.0,0.20833467]
[1740326502283,0.3242002,95611.0,95610.0,0.22233467]
[1740326502284,0.3252002,95611.0,95610.0,0.22233467]
[1740326502957,0.3242002,95611.0,95610.0,0.21533467]
[1740326503173,0.3252002,95611.0,95610.0,0.22233467]
[1740326524129,0.0027002,95611.0,95610.0,0.22233467]
[1740326525592,0.0027002,95611.0,95610.0,0.37233467]
[1740326526323,0.0027002,95611.0,95610.0,0.40503753]
[1740326526770,0.0027002,95611.0,95610.0,0.40830985]
[1740326528044,0.0027002,95611.0,95610.0,0.40503753]
[1740326529094,0.0017002,95611.0,95610.0,0.39803753]
[1740326529672,0.0017002,95611.0,95610.0,0.40503753]
[1740326531742,0.0017002,95611.0,95610.0,0.39803753]
[1740326531917,0.0017002,95611.0,95610.0,0.40503753]
[1740326537305,0.0017002,95611.0,95610.0,0.32673753]
[1740326549482,0.0017002,95611.0,95610.0,0.40963753]
[1740326556148,0.0017002,95611.0,95610.0,0.42926635]
[1740326559581,0.0017002,95611.0,95610.0,0.43253843]
[1740326559875,0.0017002,95611.0,95610.0,0.4320853]
[1740326563145,0.0017002,95611.0,95610.0,0.44662615]
[1740326563346,0.0017002,95611.0,95610.0,0.56927184]
[1740326563694,0.0017002,95611.0,95610.0,0.57725844]
[1740326564668,0.0017002,95611.0,95610.0,0.57025844]
[1740326565085,0.0017002,95611.0,95610.0,0.57725844]
[1740326565449,0.0017002,95611.0,95610.0,0.57025844]
[1740326566843,0.0017002,95611.0,95610.0,0.57725844]
[1740326567236,0.0017002,95611.0,95610.0,0.57025844]
[1740326569483,0.0017002,95611.0,95610.0,0.57725844]
[1740326572360,0.0017008,95628.0,95627.0,0.275487]
[1740326572797,0.0017008,95628.0,95627.0,0.27882731]
[1740326573833,0.0017008,95628.0,95627.0,0.29182731]
[1740326574282,0.0017008,95628.0,95627.0,0.29509939]
[1740326574651,0.0017008,95628.0,95627.0,0.31472821]
[1740326576516,0.00160852,95628.0,95627.0,0.31472821]
[1740326579739,0.00160852,95628.0,95627.0,0.33568786]
[1740326586720,0.00160852,95628.0,95627.0,0.34639846]
[1740326588478,0.00160852,95628.0,95627.0,0.33568786]
[1740326590235,0.00160852,95628.0,95627.0,0.3459914]
[1740326592789,0.00160852,95628.0,95627.0,0.3408414]
[1740326593032,0.00160852,95628.0,95627.0,0.3468414]
[1740326593188,0.00160852,95628.0,95627.0,0.3398414]
[1740326593389,0.00160852,95628.0,95627.0,0.3408414]
[1740326593748,0.00160852,95628.0,95627.0,0.3338414]
[1740326593970,0.00160852,95628.0,95627.0,0.3408414]
[1740326594866,0.00160852,95628.0,95627.0,0.3468414]
[1740326595072,0.00160852,95628.0,95627.0,0.35207632]
[1740326595249,0.00160852,95628.0,95627.0,0.34607632]
[1740326597557,0.00160852,95628.0,95627.0,0.3264475]
[1740326598016,0.00160852,95628.0,95627.0,0.37368937]